[Event "2026 European Womens Championship"]
[Site "Batumi, GE"]
[Date "2026.05.27"]
[Round "3"]
[White "Saltkhutsishvili, Sara"]
[Black "Dwilewicz, Katarzyna"]
[Result "0-1"]
[Board "71"]
[TimeControl "5400+30"]
[WhiteFideId "13636995"]
[BlackFideId "1148486"]
[WhiteElo "1763"]
[BlackElo "2131"]
[BlackTitle "WIM"]
[WhiteClock "0:21:55"]
[BlackClock "0:23:56"]
[Variant "Standard"]

1. e4 {[%clk 1:30:57]}  c5 {[%clk 1:30:52]} 2. Nf3 {[%clk 1:31:22]}  e6 {[%clk 1:31:00]} 3. d4 {[%clk 1:31:48]}  cxd4 {[%clk 1:31:26]}
4. Nxd4 {[%clk 1:32:14]}  a6 {[%clk 1:31:48]} 5. Nc3 {[%clk 1:32:14]}  b5 {[%clk 1:32:14]} 6. Bd3 {[%clk 1:29:56]}  Bb7 {[%clk 1:32:29]}
7. O-O {[%clk 1:29:39]}  d6 {[%clk 1:30:14]} 8. Be3 {[%clk 1:26:07]}  Nf6 {[%clk 1:30:27]} 9. f3 {[%clk 1:25:36]}  Be7 {[%clk 1:30:28]}
10. Qd2 {[%clk 1:20:55]}  Nbd7 {[%clk 1:30:14]} 11. Qf2 {[%clk 1:19:24]}  O-O {[%clk 1:21:06]} 12. Rfd1 {[%clk 1:11:15]}  Qc7 {[%clk 1:16:15]}
13. Kh1 {[%clk 1:03:23]}  Rac8 {[%clk 1:08:59]} 14. Bf1 {[%clk 0:52:55]}  b4 {[%clk 1:00:54]} 15. Na4 {[%clk 0:41:37]}  d5 {[%clk 1:00:55]}
16. exd5 {[%clk 0:41:29]}  Nxd5 {[%clk 1:01:17]} 17. Bd2 {[%clk 0:40:17]}  Bd6 {[%clk 0:58:41]} 18. Qh4 {[%clk 0:34:57]}  Ne5 {[%clk 0:57:20]}
19. Rac1 {[%clk 0:30:31]}  Ng6 {[%clk 0:56:23]} 20. Qh5 {[%clk 0:24:51]}  Ndf4 {[%clk 0:37:48]} 21. Bxf4 {[%clk 0:21:58]}  Bxf4 {[%clk 0:37:38]}
22. Rb1 {[%clk 0:19:49]}  Rfd8 {[%clk 0:36:42]} 23. c4 {[%clk 0:15:51]}  Be5 {[%clk 0:30:27]} 24. Nb3 {[%clk 0:11:49]}  Bc6 {[%clk 0:12:02]}
25. Nac5 {[%clk 0:09:47]}  Qe7 {[%clk 0:07:15]} 26. Bd3 {[%clk 0:05:04]}  f5 {[%clk 0:06:16]} 27. Nxe6 {[%clk 0:01:59]}  Rxd3 {[%clk 0:06:04]}
28. Rxd3 {[%clk 0:02:08]}  Qxe6 {[%clk 0:06:30]} 29. Nd4 {[%clk 0:00:43]}  Bxd4 {[%clk 0:05:10]} 30. Rxd4 {[%clk 0:01:08]}  Re8 {[%clk 0:05:37]}
31. h3 {[%clk 0:00:51]}  Qf6 {[%clk 0:03:05]} 32. Rbd1 {[%clk 0:00:39]}  h6 {[%clk 0:03:09]} 33. c5 {[%clk 0:00:35]}  Kh7 {[%clk 0:02:31]}
34. b3 {[%clk 0:00:35]}  Re5 {[%clk 0:01:59]} 35. Rd6 {[%clk 0:00:40]}  Re6 {[%clk 0:02:28]} 36. R6d4 {[%clk 0:01:09]}  a5 {[%clk 0:01:54]}
37. Kg1 {[%clk 0:00:36]}  Qe5 {[%clk 0:01:53]} 38. Rc4 {[%clk 0:00:34]}  Bb5 {[%clk 0:01:14]} 39. Rc2 {[%clk 0:00:33]}  Bc6 {[%clk 0:00:44]}
40. Kh1 {[%clk 0:00:44]}  Qf4 {[%clk 0:00:39]} 41. Rc4 {[%clk 0:00:34]}  Qe5 {[%clk 0:30:21]} 42. Rc2 {[%clk 0:30:00]}  Rf6 {[%clk 0:28:04]}
43. Kg1 {[%clk 0:23:35]}  Qg3 {[%clk 0:26:38]} 44. Rd6 {[%clk 0:22:03]}  Nf4 {[%clk 0:24:11]} 45. Rxf6 {[%clk 0:21:26]}  Nxh5 {[%clk 0:24:24]}
46. Rxc6 {[%clk 0:21:51]}  Qe1+ {[%clk 0:24:41]} 47. Kh2 {[%clk 0:22:02]}  Ng3 {[%clk 0:24:58]} 48. Rc4 {[%clk 0:21:12]}  Nf1+ {[%clk 0:25:09]}
49. Kg1 {[%clk 0:21:34]}  Ne3+ {[%clk 0:25:01]} 50. Kh2 {[%clk 0:21:55]}  Qf2 {[%clk 0:23:56]} 0-1

[Event "2026 European Womens Championship"]
[Site "Batumi, GE"]
[Date "2026.05.27"]
[Round "3"]
[White "Saraci, Rinesa"]
[Black "Vidic, Teja"]
[Result "0-1"]
[Board "72"]
[TimeControl "5400+30"]
[WhiteFideId "4701976"]
[BlackFideId "14605511"]
[WhiteElo "1754"]
[BlackElo "2123"]
[WhiteTitle "WCM"]
[BlackTitle "WIM"]
[WhiteClock "0:00:36"]
[BlackClock "0:14:12"]
[Variant "Standard"]

1. e4 {[%clk 1:30:56]}  c5 {[%clk 1:30:56]} 2. Nf3 {[%clk 1:31:17]}  e6 {[%clk 1:31:22]} 3. d4 {[%clk 1:31:30]}  cxd4 {[%clk 1:31:47]}
4. Nxd4 {[%clk 1:31:54]}  Nf6 {[%clk 1:32:10]} 5. Nc3 {[%clk 1:31:55]}  Nc6 {[%clk 1:32:36]} 6. Ndb5 {[%clk 1:31:27]}  d6 {[%clk 1:32:42]}
7. Bf4 {[%clk 1:31:09]}  e5 {[%clk 1:33:05]} 8. Bg5 {[%clk 1:31:06]}  a6 {[%clk 1:33:30]} 9. Na3 {[%clk 1:28:24]}  b5 {[%clk 1:33:54]}
10. Bxf6 {[%clk 1:27:07]}  gxf6 {[%clk 1:34:19]} 11. Nd5 {[%clk 1:22:56]}  f5 {[%clk 1:34:42]} 12. Qd3 {[%clk 1:13:22]}  fxe4 {[%clk 1:17:43]}
13. Qxe4 {[%clk 1:13:33]}  Ra7 {[%clk 1:18:04]} 14. c3 {[%clk 1:01:05]}  Bg7 {[%clk 1:17:42]} 15. g4 {[%clk 0:56:30]}  Ne7 {[%clk 1:12:52]}
16. Qe3 {[%clk 0:49:40]}  Nxd5 {[%clk 1:12:06]} 17. Qxa7 {[%clk 0:49:15]}  O-O {[%clk 1:06:46]} 18. Rg1 {[%clk 0:41:01]}  b4 {[%clk 0:55:11]}
19. cxb4 {[%clk 0:40:38]}  Nxb4 {[%clk 0:54:47]} 20. Qe3 {[%clk 0:34:24]}  e4 {[%clk 0:46:30]} 21. Qd2 {[%clk 0:31:32]}  a5 {[%clk 0:42:03]}
22. Nc4 {[%clk 0:17:13]}  d5 {[%clk 0:39:43]} 23. Ne3 {[%clk 0:17:00]}  Qf6 {[%clk 0:32:48]} 24. Rd1 {[%clk 0:07:33]}  d4 {[%clk 0:18:34]}
25. Nf5 {[%clk 0:05:56]}  e3 {[%clk 0:18:52]} 26. fxe3 {[%clk 0:04:59]}  dxe3 {[%clk 0:19:16]} 27. Qc3 {[%clk 0:04:18]}  Qxc3+ {[%clk 0:16:37]}
28. bxc3 {[%clk 0:04:18]}  Bxc3+ {[%clk 0:17:03]} 29. Ke2 {[%clk 0:04:34]}  Re8 {[%clk 0:17:09]} 30. Rc1 {[%clk 0:03:51]}  Ba6+ {[%clk 0:15:46]}
31. Kf3 {[%clk 0:03:50]}  e2 {[%clk 0:16:11]} 32. Ne3 {[%clk 0:03:30]}  Bd2 {[%clk 0:13:49]} 33. Bxe2 {[%clk 0:00:54]}  Rxe3+ {[%clk 0:13:50]}
34. Kf2 {[%clk 0:00:36]}  Rxe2+ {[%clk 0:14:12]} 0-1

[Event "2026 European Womens Championship"]
[Site "Batumi, GE"]
[Date "2026.05.27"]
[Round "3"]
[White "Muradyan, Anahit"]
[Black "Rekhviashvili, Mariam"]
[Result "0-1"]
[Board "73"]
[TimeControl "5400+30"]
[WhiteFideId "13314807"]
[BlackFideId "13635859"]
[WhiteElo "1977"]
[BlackElo "1836"]
[WhiteClock "0:27:59"]
[BlackClock "0:47:10"]
[Variant "Standard"]

1. e4 {[%clk 1:30:57]}  e6 {[%clk 1:30:19]} 2. d4 {[%clk 1:31:25]}  d5 {[%clk 1:30:42]} 3. Nc3 {[%clk 1:31:47]}  dxe4 {[%clk 1:31:07]}
4. Nxe4 {[%clk 1:32:14]}  Nd7 {[%clk 1:31:31]} 5. Nf3 {[%clk 1:32:24]}  Ngf6 {[%clk 1:31:54]} 6. Nxf6+ {[%clk 1:32:08]}  Nxf6 {[%clk 1:32:17]}
7. Bd3 {[%clk 1:32:32]}  Be7 {[%clk 1:32:39]} 8. c3 {[%clk 1:32:57]}  O-O {[%clk 1:33:02]} 9. Bg5 {[%clk 1:33:02]}  b6 {[%clk 1:33:16]}
10. O-O {[%clk 1:28:57]}  Bb7 {[%clk 1:33:37]} 11. Qe2 {[%clk 1:28:08]}  Qd6 {[%clk 1:24:31]} 12. a4 {[%clk 1:25:00]}  c5 {[%clk 1:23:48]}
13. dxc5 {[%clk 1:20:13]}  Qxc5 {[%clk 1:23:43]} 14. Be3 {[%clk 1:20:06]}  Qc7 {[%clk 1:22:40]} 15. Bd4 {[%clk 1:15:16]}  Rad8 {[%clk 1:02:25]}
16. Ng5 {[%clk 1:02:49]}  h6 {[%clk 0:55:08]} 17. Ne4 {[%clk 0:56:30]}  Nd5 {[%clk 0:50:54]} 18. g3 {[%clk 0:11:56]}  e5 {[%clk 0:48:15]}
19. Be3 {[%clk 0:12:11]}  Nxe3 {[%clk 0:45:13]} 20. fxe3 {[%clk 0:11:30]}  Qc6 {[%clk 0:42:57]} 21. Rf5 {[%clk 0:10:30]}  Qe6 {[%clk 0:27:59]}
22. Raf1 {[%clk 0:09:09]}  g6 {[%clk 0:26:38]} 23. Bc4 {[%clk 0:04:36]}  Ba6 {[%clk 0:17:23]} 24. Bxe6 {[%clk 0:00:35]}  Bxe2 {[%clk 0:17:50]}
25. Rxf7 {[%clk 0:00:53]}  Bxf1 {[%clk 0:18:05]} 26. Rxe7+ {[%clk 0:00:47]}  Kh8 {[%clk 0:18:31]} 27. Bf7 {[%clk 0:27:59]}  Rd1 {[%clk 0:47:10]} 0-1

[Event "2026 European Womens Championship"]
[Site "Batumi, GE"]
[Date "2026.05.27"]
[Round "3"]
[White "Radikovic, Anamarija"]
[Black "Gharibyan, Mane"]
[Result "1-0"]
[Board "74"]
[TimeControl "5400+30"]
[WhiteFideId "14546264"]
[BlackFideId "13306430"]
[WhiteElo "1974"]
[BlackElo "1776"]
[WhiteTitle "WFM"]
[WhiteClock "0:23:26"]
[BlackClock "0:00:46"]
[Variant "Standard"]

1. e4 {[%clk 1:30:56]}  c5 {[%clk 1:29:30]} 2. Nf3 {[%clk 1:31:17]}  d6 {[%clk 1:29:23]} 3. d4 {[%clk 1:31:32]}  cxd4 {[%clk 1:29:49]}
4. Nxd4 {[%clk 1:31:57]}  Nf6 {[%clk 1:30:15]} 5. Nc3 {[%clk 1:32:20]}  a6 {[%clk 1:30:43]} 6. Be2 {[%clk 1:32:44]}  e5 {[%clk 1:30:06]}
7. Nb3 {[%clk 1:33:06]}  Be6 {[%clk 1:30:32]} 8. O-O {[%clk 1:29:04]}  b5 {[%clk 1:22:28]} 9. Bf3 {[%clk 1:27:41]}  Nbd7 {[%clk 1:21:35]}
10. a4 {[%clk 1:23:06]}  b4 {[%clk 1:12:36]} 11. Nd5 {[%clk 1:23:07]}  Bxd5 {[%clk 1:06:23]} 12. exd5 {[%clk 1:23:30]}  Be7 {[%clk 1:06:05]}
13. a5 {[%clk 1:20:40]}  Qc7 {[%clk 0:59:55]} 14. Qd3 {[%clk 1:06:52]}  O-O {[%clk 0:45:01]} 15. Bd2 {[%clk 1:00:26]}  Rfb8 {[%clk 0:33:35]}
16. Rfe1 {[%clk 0:54:19]}  Rb5 {[%clk 0:30:44]} 17. Nd4 {[%clk 0:46:31]}  exd4 {[%clk 0:13:52]} 18. Rxe7 {[%clk 0:45:15]}  Qd8 {[%clk 0:13:22]}
19. Rxd7 {[%clk 0:37:20]}  Nxd7 {[%clk 0:02:14]} 20. Qxd4 {[%clk 0:36:22]}  Rxa5 {[%clk 0:02:34]} 21. Rxa5 {[%clk 0:32:16]}  Qxa5 {[%clk 0:03:00]}
22. Bxb4 {[%clk 0:32:38]}  Qa1+ {[%clk 0:02:20]} 23. Bd1 {[%clk 0:33:02]}  Rb8 {[%clk 0:01:30]} 24. Bc3 {[%clk 0:33:21]}  f6 {[%clk 0:00:50]}
25. h3 {[%clk 0:33:37]}  Nc5 {[%clk 0:00:37]} 26. b4 {[%clk 0:27:34]}  Qa4 {[%clk 0:00:34]} 27. Bg4 {[%clk 0:27:25]}  Nb7 {[%clk 0:00:36]}
28. Be6+ {[%clk 0:25:52]}  Kh8 {[%clk 0:00:37]} 29. Qxf6 {[%clk 0:22:51]}  Rg8 {[%clk 0:01:02]} 30. Qf7 {[%clk 0:23:03]}  Qe8 {[%clk 0:00:46]}
31. Bxg7+ {[%clk 0:23:26]} 1-0

[Event "2026 European Womens Championship"]
[Site "Batumi, GE"]
[Date "2026.05.27"]
[Round "3"]
[White "Esadze, Tamari"]
[Black "Kalayci, Nino"]
[Result "1-0"]
[Board "75"]
[TimeControl "5400+30"]
[WhiteFideId "13611186"]
[BlackFideId "13603221"]
[WhiteElo "1974"]
[BlackElo "1755"]
[BlackTitle "WCM"]
[WhiteClock "0:06:10"]
[BlackClock "0:08:47"]
[Variant "Standard"]

1. e4 {[%clk 1:30:57]}  e6 {[%clk 1:30:49]} 2. d4 {[%clk 1:31:23]}  d5 {[%clk 1:31:14]} 3. Nd2 {[%clk 1:31:41]}  dxe4 {[%clk 1:31:36]}
4. Nxe4 {[%clk 1:32:08]}  Nd7 {[%clk 1:31:59]} 5. Nf3 {[%clk 1:32:33]}  Ngf6 {[%clk 1:32:24]} 6. Nxf6+ {[%clk 1:32:43]}  Nxf6 {[%clk 1:32:47]}
7. Bd3 {[%clk 1:33:00]}  Be7 {[%clk 1:31:55]} 8. O-O {[%clk 1:33:03]}  O-O {[%clk 1:32:03]} 9. Ne5 {[%clk 1:27:33]}  c5 {[%clk 1:29:38]}
10. dxc5 {[%clk 1:25:13]}  Qc7 {[%clk 1:22:06]} 11. Re1 {[%clk 1:22:15]}  Qxc5 {[%clk 1:13:22]} 12. Qf3 {[%clk 1:16:11]}  Qb4 {[%clk 0:54:31]}
13. c3 {[%clk 1:09:17]}  Qh4 {[%clk 0:53:10]} 14. Bf4 {[%clk 0:58:55]}  Qh5 {[%clk 0:30:53]} 15. g4 {[%clk 0:48:23]}  Qh4 {[%clk 0:29:32]}
16. Bg3 {[%clk 0:42:57]}  Qh3 {[%clk 0:26:33]} 17. Bf1 {[%clk 0:28:50]}  Qh6 {[%clk 0:26:51]} 18. h4 {[%clk 0:21:12]}  Qd2 {[%clk 0:22:09]}
19. g5 {[%clk 0:19:14]}  Ne8 {[%clk 0:21:44]} 20. Nc4 {[%clk 0:07:55]}  Qc2 {[%clk 0:17:38]} 21. b3 {[%clk 0:06:33]}  Kh8 {[%clk 0:08:40]}
22. Bd3 {[%clk 0:06:00]}  Qxc3 {[%clk 0:08:56]} 23. Be5 {[%clk 0:06:28]}  Qb4 {[%clk 0:08:47]} 24. Qe4 {[%clk 0:06:10]} 1-0

[Event "2026 European Womens Championship"]
[Site "Batumi, GE"]
[Date "2026.05.27"]
[Round "3"]
[White "Rusitashvili, Tea"]
[Black "Danielyan, Lilia"]
[Result "1-0"]
[Board "76"]
[TimeControl "5400+30"]
[WhiteFideId "13640771"]
[BlackFideId "13319841"]
[WhiteElo "1929"]
[BlackElo "1728"]
[WhiteTitle "WCM"]
[WhiteClock "0:19:15"]
[BlackClock "0:01:06"]
[Variant "Standard"]

1. e4 {[%clk 1:30:58]}  c5 {[%clk 1:30:51]} 2. Nf3 {[%clk 1:31:16]}  Nc6 {[%clk 1:31:09]} 3. Bb5 {[%clk 1:31:43]}  e5 {[%clk 1:31:14]}
4. O-O {[%clk 1:31:56]}  Bd6 {[%clk 1:31:15]} 5. d4 {[%clk 1:30:47]}  Nxd4 {[%clk 1:31:19]} 6. Bc4 {[%clk 1:31:09]}  h6 {[%clk 1:29:55]}
7. Nxd4 {[%clk 1:30:04]}  cxd4 {[%clk 1:30:00]} 8. c3 {[%clk 1:29:22]}  Bc5 {[%clk 1:27:39]} 9. Kh1 {[%clk 1:24:54]}  Nf6 {[%clk 1:21:29]}
10. f4 {[%clk 1:18:07]}  d6 {[%clk 1:17:46]} 11. Qf3 {[%clk 1:16:23]}  a6 {[%clk 1:04:16]} 12. fxe5 {[%clk 1:14:39]}  dxe5 {[%clk 0:59:58]}
13. Qg3 {[%clk 1:14:15]}  Bg4 {[%clk 0:52:48]} 14. Qxe5+ {[%clk 1:06:03]}  Qe7 {[%clk 0:48:49]} 15. Qxe7+ {[%clk 1:01:06]}  Kxe7 {[%clk 0:42:50]}
16. e5 {[%clk 1:00:56]}  Nh5 {[%clk 0:40:06]} 17. Rxf7+ {[%clk 0:59:49]}  Kd8 {[%clk 0:39:25]} 18. h3 {[%clk 0:57:56]}  Ng3+ {[%clk 0:35:26]}
19. Kh2 {[%clk 0:57:59]}  Be2 {[%clk 0:35:08]} 20. Bxe2 {[%clk 0:54:53]}  Nxe2 {[%clk 0:35:29]} 21. Bd2 {[%clk 0:54:48]}  Re8 {[%clk 0:29:45]}
22. Rxg7 {[%clk 0:50:41]}  Rxe5 {[%clk 0:24:34]} 23. Rg8+ {[%clk 0:49:17]}  Re8 {[%clk 0:20:08]} 24. Rxe8+ {[%clk 0:36:17]}  Kxe8 {[%clk 0:20:35]}
25. g4 {[%clk 0:35:01]}  Kd7 {[%clk 0:19:22]} 26. Bxh6 {[%clk 0:33:58]}  Rh8 {[%clk 0:14:19]} 27. g5 {[%clk 0:23:24]}  d3 {[%clk 0:11:59]}
28. Nd2 {[%clk 0:23:01]}  Bd6+ {[%clk 0:10:19]} 29. Kg2 {[%clk 0:21:45]}  Nf4+ {[%clk 0:08:45]} 30. Kf3 {[%clk 0:17:23]}  Nxh3 {[%clk 0:06:39]}
31. Ne4 {[%clk 0:17:42]}  Bc7 {[%clk 0:01:45]} 32. Nc5+ {[%clk 0:16:42]}  Kc6 {[%clk 0:01:20]} 33. Nxd3 {[%clk 0:16:31]}  Rd8 {[%clk 0:00:39]}
34. Rd1 {[%clk 0:16:09]}  a5 {[%clk 0:00:42]} 35. Ne5+ {[%clk 0:16:04]}  Kb5 {[%clk 0:00:36]} 36. Rxd8 {[%clk 0:16:22]}  Bxd8 {[%clk 0:01:04]}
37. g6 {[%clk 0:16:44]}  Bf6 {[%clk 0:00:38]} 38. g7 {[%clk 0:16:52]}  Bxg7 {[%clk 0:00:55]} 39. Bxg7 {[%clk 0:17:19]}  Ng5+ {[%clk 0:01:16]}
40. Ke3 {[%clk 0:17:38]}  Ne6 {[%clk 0:01:33]} 41. Bf6 {[%clk 0:17:57]}  Nc5 {[%clk 0:01:48]} 42. Nd3 {[%clk 0:18:03]}  Nd7 {[%clk 0:01:23]}
43. Bd4 {[%clk 0:18:20]}  Nf8 {[%clk 0:00:57]} 44. Nf4 {[%clk 0:18:18]}  Nd7 {[%clk 0:01:05]} 45. Ke4 {[%clk 0:18:19]}  Kc6 {[%clk 0:01:15]}
46. Nd3 {[%clk 0:18:31]}  Nf8 {[%clk 0:01:02]} 47. Ne5+ {[%clk 0:18:54]}  Kd6 {[%clk 0:01:06]} 48. Nc4+ {[%clk 0:19:15]} 1-0

[Event "2026 European Womens Championship"]
[Site "Batumi, GE"]
[Date "2026.05.27"]
[Round "3"]
[White "Demirtas, Hafize"]
[Black "Kedelidze, Aneta"]
[Result "1-0"]
[Board "77"]
[TimeControl "5400+30"]
[WhiteFideId "6382070"]
[BlackFideId "13626191"]
[WhiteElo "1928"]
[BlackElo "1676"]
[WhiteClock "0:01:10"]
[BlackClock "0:01:04"]
[Variant "Standard"]

1. e3 {[%clk 1:30:54]}  e5 {[%clk 1:30:00]} 2. d4 {[%clk 1:31:17]}  exd4 {[%clk 1:29:19]} 3. exd4 {[%clk 1:31:38]}  d5 {[%clk 1:29:33]}
4. Bd3 {[%clk 1:31:58]}  Bd6 {[%clk 1:29:43]} 5. Nf3 {[%clk 1:31:40]}  Bg4 {[%clk 1:28:33]} 6. h3 {[%clk 1:29:09]}  Bh5 {[%clk 1:28:15]}
7. g4 {[%clk 1:28:28]}  Bg6 {[%clk 1:23:26]} 8. Bg5 {[%clk 1:28:36]}  Ne7 {[%clk 1:22:25]} 9. Nc3 {[%clk 1:27:41]}  f6 {[%clk 1:20:26]}
10. Be3 {[%clk 1:26:10]}  Nbc6 {[%clk 1:16:43]} 11. Bxg6+ {[%clk 1:24:06]}  hxg6 {[%clk 1:17:04]} 12. Qd2 {[%clk 1:23:17]}  a6 {[%clk 1:16:15]}
13. O-O-O {[%clk 1:22:35]}  Qd7 {[%clk 1:16:15]} 14. Ne1 {[%clk 1:17:36]}  O-O-O {[%clk 1:13:31]} 15. f4 {[%clk 1:17:20]}  Na5 {[%clk 1:11:21]}
16. Nd3 {[%clk 1:06:19]}  Nc4 {[%clk 1:10:24]} 17. Qf2 {[%clk 1:06:26]}  Nxe3 {[%clk 0:57:34]} 18. Qxe3 {[%clk 1:06:49]}  b6 {[%clk 0:53:37]}
19. Kb1 {[%clk 1:06:53]}  Kb7 {[%clk 0:46:25]} 20. Qf3 {[%clk 1:03:12]}  Qc6 {[%clk 0:43:05]} 21. Rde1 {[%clk 1:02:40]}  Qc4 {[%clk 0:40:15]}
22. Ne2 {[%clk 1:01:18]}  Nc6 {[%clk 0:36:01]} 23. c3 {[%clk 0:59:00]}  Na5 {[%clk 0:35:31]} 24. b4 {[%clk 0:41:30]}  Qb5 {[%clk 0:26:38]}
25. Nec1 {[%clk 0:19:00]}  Nc4 {[%clk 0:25:49]} 26. Qg2 {[%clk 0:19:23]}  c6 {[%clk 0:15:26]} 27. Ka1 {[%clk 0:15:17]}  a5 {[%clk 0:14:10]}
28. Qc2 {[%clk 0:04:10]}  axb4 {[%clk 0:13:09]} 29. Nxb4 {[%clk 0:04:31]}  Bxb4 {[%clk 0:05:56]} 30. cxb4 {[%clk 0:04:59]}  Qxb4 {[%clk 0:05:30]}
31. Nd3 {[%clk 0:05:27]}  Qd6 {[%clk 0:04:31]} 32. f5 {[%clk 0:02:03]}  Rhe8 {[%clk 0:03:06]} 33. fxg6 {[%clk 0:02:03]}  Na3 {[%clk 0:01:58]}
34. Qb3 {[%clk 0:01:57]}  Nb5 {[%clk 0:01:59]} 35. Qb2 {[%clk 0:01:46]}  Re4 {[%clk 0:01:25]} 36. Rxe4 {[%clk 0:00:46]}  dxe4 {[%clk 0:01:51]}
37. Nb4 {[%clk 0:00:40]}  Nxd4 {[%clk 0:00:36]} 38. Rb1 {[%clk 0:01:01]}  Nb5 {[%clk 0:00:44]} 39. g5 {[%clk 0:01:25]}  Qd4 {[%clk 0:00:35]}
40. gxf6 {[%clk 0:01:39]}  Qxb2+ {[%clk 0:00:34]} 41. Kxb2 {[%clk 0:02:00]}  gxf6 {[%clk 0:00:57]} 42. Rg1 {[%clk 0:01:50]}  Nd4 {[%clk 0:00:36]}
43. g7 {[%clk 0:01:25]}  Rg8 {[%clk 0:00:57]} 44. h4 {[%clk 0:01:20]}  Nf5 {[%clk 0:00:44]} 45. h5 {[%clk 0:01:29]}  e3 {[%clk 0:00:51]}
46. Nd3 {[%clk 0:01:41]}  e2 {[%clk 0:01:03]} 47. Rg6 {[%clk 0:01:41]}  c5 {[%clk 0:00:47]} 48. Kc2 {[%clk 0:00:48]}  Ne7 {[%clk 0:19:04]}
49. Rg1 {[%clk 0:27:41]}  Nf5 {[%clk 0:18:56]} 50. Kd2 {[%clk 0:14:29]}  Kc7 {[%clk 0:17:51]} 51. Kxe2 {[%clk 0:11:45]}  Kd6 {[%clk 0:11:44]}
52. Rg6 {[%clk 0:07:20]}  Ke6 {[%clk 0:09:34]} 53. h6 {[%clk 0:04:22]}  Kf7 {[%clk 0:03:23]} 54. Ne5+ {[%clk 0:04:22]}  fxe5 {[%clk 0:02:47]}
55. h7 {[%clk 0:04:45]}  Rxg7 {[%clk 0:01:44]} 56. h8=Q {[%clk 0:04:35]}  Kxg6 {[%clk 0:00:35]} 57. Qb8 {[%clk 0:04:38]}  Nd4+ {[%clk 0:00:36]}
58. Kd3 {[%clk 0:04:16]}  Kf5 {[%clk 0:00:34]} 59. Qf8+ {[%clk 0:03:03]}  Kg6 {[%clk 0:00:56]} 60. Ke4 {[%clk 0:03:19]}  Rf7 {[%clk 0:00:33]}
61. Qg8+ {[%clk 0:03:47]}  Kf6 {[%clk 0:00:33]} 62. Qd8+ {[%clk 0:04:12]}  Re7 {[%clk 0:00:35]} 63. Qxb6+ {[%clk 0:04:32]}  Ne6 {[%clk 0:00:46]}
64. a4 {[%clk 0:03:50]}  Rd7 {[%clk 0:00:44]} 65. a5 {[%clk 0:04:06]}  Rd4+ {[%clk 0:01:08]} 66. Ke3 {[%clk 0:04:07]}  Ra4 {[%clk 0:00:35]}
67. a6 {[%clk 0:04:13]}  Ra3+ {[%clk 0:00:41]} 68. Kd2 {[%clk 0:03:51]}  Kf5 {[%clk 0:00:34]} 69. a7 {[%clk 0:03:56]}  e4 {[%clk 0:00:43]}
70. Qb8 {[%clk 0:01:54]}  e3+ {[%clk 0:01:02]} 71. Ke1 {[%clk 0:02:17]}  Ra1+ {[%clk 0:00:34]} 72. Ke2 {[%clk 0:02:38]}  Ke4 {[%clk 0:00:32]}
73. a8=Q+ {[%clk 0:02:12]}  Rxa8 {[%clk 0:00:58]} 74. Qxa8+ {[%clk 0:03:05]}  Kd4 {[%clk 0:01:16]} 75. Qa1+ {[%clk 0:03:18]}  Ke4 {[%clk 0:01:23]}
76. Qh1+ {[%clk 0:02:23]}  Kd4 {[%clk 0:00:59]} 77. Qh8+ {[%clk 0:02:08]}  Ke4 {[%clk 0:00:41]} 78. Qh7+ {[%clk 0:02:37]}  Kf4 {[%clk 0:00:32]}
79. Qf7+ {[%clk 0:02:10]}  Ke5 {[%clk 0:00:46]} 80. Kxe3 {[%clk 0:02:27]}  Nd4 {[%clk 0:00:56]} 81. Kd3 {[%clk 0:01:13]}  Ne6 {[%clk 0:00:39]}
82. Kc4 {[%clk 0:01:15]}  Kd6 {[%clk 0:00:51]} 83. Qf6 {[%clk 0:01:13]}  Kd7 {[%clk 0:01:04]} 84. Kd5 {[%clk 0:01:10]} 1-0

[Event "2026 European Womens Championship"]
[Site "Batumi, GE"]
[Date "2026.05.27"]
[Round "3"]
[White "Giorgadze, Mariam Ere"]
[Black "Chanturia, Lika"]
[Result "1-0"]
[Board "78"]
[TimeControl "5400+30"]
[WhiteFideId "13636839"]
[BlackFideId "13618857"]
[WhiteElo "1909"]
[BlackElo "1649"]
[WhiteClock "0:07:45"]
[BlackClock "0:01:01"]
[Variant "Standard"]

1. e4 {[%clk 1:30:59]}  c6 {[%clk 1:30:54]} 2. d4 {[%clk 1:31:25]}  d5 {[%clk 1:31:19]} 3. e5 {[%clk 1:31:52]}  Bf5 {[%clk 1:31:44]}
4. g4 {[%clk 1:32:17]}  Bg6 {[%clk 1:31:57]} 5. e6 {[%clk 1:32:38]}  Qd6 {[%clk 1:26:25]} 6. exf7+ {[%clk 1:29:24]}  Bxf7 {[%clk 1:26:40]}
7. Nf3 {[%clk 1:24:50]}  Nd7 {[%clk 1:23:07]} 8. Ng5 {[%clk 1:18:29]}  Nh6 {[%clk 1:17:05]} 9. Nc3 {[%clk 1:07:17]}  O-O-O {[%clk 1:08:01]}
10. f4 {[%clk 1:02:56]}  g6 {[%clk 0:54:57]} 11. a3 {[%clk 0:54:17]}  Bg7 {[%clk 0:51:26]} 12. Be3 {[%clk 0:53:55]}  Nb6 {[%clk 0:47:28]}
13. Qd2 {[%clk 0:49:42]}  Rhe8 {[%clk 0:43:26]} 14. O-O-O {[%clk 0:46:45]}  Bg8 {[%clk 0:40:24]} 15. h3 {[%clk 0:46:35]}  Nf7 {[%clk 0:31:36]}
16. Nf3 {[%clk 0:42:56]}  Qc7 {[%clk 0:29:58]} 17. b3 {[%clk 0:38:14]}  Nd6 {[%clk 0:28:18]} 18. Bd3 {[%clk 0:36:43]}  a5 {[%clk 0:23:29]}
19. a4 {[%clk 0:33:29]}  Nd7 {[%clk 0:20:05]} 20. Ne5 {[%clk 0:30:07]}  Rf8 {[%clk 0:15:25]} 21. Ne2 {[%clk 0:25:48]}  Nf6 {[%clk 0:13:41]}
22. Ng3 {[%clk 0:25:32]}  Nfe4 {[%clk 0:12:35]} 23. Bxe4 {[%clk 0:24:51]}  Nxe4 {[%clk 0:12:17]} 24. Nxe4 {[%clk 0:25:05]}  dxe4 {[%clk 0:12:37]}
25. Qc3 {[%clk 0:20:49]}  Rd5 {[%clk 0:09:00]} 26. Qb2 {[%clk 0:17:56]}  b6 {[%clk 0:06:23]} 27. c4 {[%clk 0:17:31]}  Rdd8 {[%clk 0:06:12]}
28. Qc2 {[%clk 0:17:29]}  b5 {[%clk 0:05:05]} 29. axb5 {[%clk 0:13:36]}  cxb5 {[%clk 0:04:39]} 30. Qxe4 {[%clk 0:10:44]}  Bxe5 {[%clk 0:03:19]}
31. dxe5 {[%clk 0:11:12]}  bxc4 {[%clk 0:02:42]} 32. Qa8+ {[%clk 0:11:40]}  Qb8 {[%clk 0:03:02]} 33. Qxa5 {[%clk 0:10:39]}  cxb3 {[%clk 0:02:11]}
34. Bb6 {[%clk 0:08:41]}  Rd5 {[%clk 0:01:50]} 35. Rxd5 {[%clk 0:08:07]}  Bxd5 {[%clk 0:00:15]} 36. Rd1 {[%clk 0:07:47]}  e6 {[%clk 0:01:35]}
37. Kb2 {[%clk 0:07:20]}  Kb7 {[%clk 0:01:19]} 38. Bc5 {[%clk 0:07:32]}  Rf7 {[%clk 0:01:20]} 39. Qb5+ {[%clk 0:07:17]}  Ka8 {[%clk 0:01:01]}
40. Ra1+ {[%clk 0:07:45]} 1-0